bitfinex/quotes_BTCUSD_20250221
["timestamp","ask_amount","ask_price","bid_price","bid_amount"]
[1740163755211,0.3213501,96936.0,96935.0,0.81064569]
[1740163755410,0.3213501,96936.0,96935.0,0.80864569]
[1740163755638,0.3213501,96936.0,96935.0,0.81264569]
[1740163756956,0.3213501,96936.0,96935.0,0.11264569]
[1740163757418,0.4760911,96936.0,96935.0,0.11264569]
[1740163757626,0.3213501,96936.0,96935.0,0.11264569]
[1740163758141,0.3213501,96936.0,96935.0,0.10264569]
[1740163758349,0.3213501,96936.0,96935.0,0.80564569]
[1740163758578,0.4760911,96936.0,96935.0,0.80864569]
[1740163758774,0.3213501,96936.0,96935.0,0.80864569]
[1740163759022,0.4760911,96936.0,96935.0,0.80864569]
[1740163759464,0.4760911,96936.0,96935.0,0.10864569]
[1740163759900,0.3213501,96936.0,96935.0,0.10864569]
[1740163760408,0.3213501,96936.0,96935.0,0.10564569]
[1740163760734,0.3213501,96936.0,96935.0,0.80464569]
[1740163760936,0.3213501,96936.0,96935.0,0.80664569]
[1740163766249,0.3213501,96936.0,96935.0,0.80464569]
[1740163766682,0.3213501,96936.0,96935.0,0.80664569]
[1740163767148,0.3213501,96936.0,96935.0,0.80464569]
[1740163767354,0.3213501,96936.0,96935.0,0.80664569]
[1740163769829,0.3213501,96936.0,96935.0,0.80464569]
[1740163770033,0.3213501,96936.0,96935.0,0.80664569]
[1740163770240,0.3213501,96936.0,96935.0,0.77794569]
[1740163770442,0.3213501,96936.0,96935.0,0.77594569]
[1740163770905,0.3213501,96936.0,96935.0,0.77794569]
[1740163771108,0.3213501,96936.0,96935.0,0.85804569]
[1740163771479,0.3213501,96936.0,96935.0,0.86004569]
[1740163771703,0.3213501,96936.0,96935.0,0.77794569]
[1740163772058,0.3213501,96936.0,96935.0,0.77994569]
[1740163772473,0.4760911,96936.0,96935.0,0.706]
[1740163773696,0.4760911,96936.0,96935.0,0.006]
[1740163774448,0.3213501,96936.0,96935.0,0.10864569]
[1740163774607,0.3213501,96936.0,96935.0,0.26338769]
[1740163775018,0.3213501,96936.0,96935.0,0.96338769]
[1740163775771,0.3213501,96936.0,96935.0,0.95738769]
[1740163775973,0.3213501,96936.0,96935.0,0.80964569]
[1740163776306,0.3213501,96936.0,96935.0,0.80764569]
[1740163776756,0.3213501,96936.0,96935.0,0.96838769]
[1740163777999,0.0008505,96936.0,96935.0,1.19858769]
[1740163778629,0.0008505,96936.0,96935.0,1.04258769]
[1740163778838,0.0008505,96936.0,96935.0,1.05048352]
[1740163779041,0.0008505,96936.0,96935.0,0.81364569]
[1740163779366,0.4760911,96936.0,96935.0,0.706]
[1740163779568,0.3213501,96936.0,96935.0,0.7]
[1740163779737,0.3213501,96936.0,96935.0,0.706]
[1740163779944,0.4760911,96936.0,96935.0,0.706]
[1740163780152,0.3213501,96936.0,96935.0,0.7]
[1740163780314,0.48382049,96936.0,96935.0,0.7]
[1740163780690,0.32907949,96936.0,96935.0,0.705]
[1740163781449,0.32907949,96936.0,96935.0,0.7]
[1740163781650,0.3213501,96936.0,96935.0,0.7]
[1740163781813,0.3213501,96936.0,96935.0,0.002]
[1740163782012,0.4760911,96936.0,96935.0,0.005]
[1740163782442,0.4760911,96936.0,96935.0,0.002]
[1740163782848,0.4760911,96936.0,96935.0,0.004]
[1740163787498,0.48382123,96936.0,96935.0,0.004]
[1740163793263,0.4760911,96936.0,96935.0,0.004]
[1740163801055,0.71963195,96936.0,96935.0,0.004]
[1740163801472,0.76813195,96936.0,96935.0,0.004]
[1740163802144,0.77585653,96936.0,96935.0,0.004]
[1740163808234,0.69685653,96936.0,96935.0,0.004]
[1740163808457,0.48381568,96936.0,96935.0,0.004]
[1740163811391,0.49835653,96936.0,96935.0,0.004]
[1740163814737,0.48381568,96936.0,96935.0,0.004]
[1740163815200,0.32907468,96936.0,96935.0,0.004]
[1740163815376,0.32907468,96936.0,96935.0,0.0873]
[1740163815594,0.48381568,96936.0,96935.0,0.0873]
[1740163816506,0.4760911,96936.0,96935.0,0.0873]
[1740163817136,0.3213501,96936.0,96935.0,0.0873]
[1740163817369,0.3213501,96936.0,96935.0,0.2003103]
[1740163817567,0.3213501,96936.0,96935.0,0.9003103]
[1740163818520,0.3213501,96936.0,96935.0,0.8983103]
[1740163819005,0.3213501,96936.0,96935.0,0.88794569]
[1740163819260,0.4760911,96936.0,96935.0,0.702]
[1740163819475,0.64063195,96936.0,96935.0,0.702]
[1740163819688,0.64063195,96936.0,96935.0,0.7]
[1740163819903,0.64063195,96936.0,96935.0,0.705]
[1740163820074,0.64063195,96936.0,96935.0,0.005]
[1740163820311,0.64063195,96936.0,96920.0,0.001701]
[1740163820312,0.206336,96930.0,96920.0,0.001701]
[1740163820519,0.163622,96930.0,96922.0,0.7]
[1740163820731,0.154759,96925.0,96923.0,0.10264569]
[1740163821114,0.15476,96924.0,96923.0,0.10264569]
[1740163822002,0.154765,96921.0,96920.0,0.004701]
[1740163822398,0.4752646,96921.0,96920.0,0.004701]
[1740163822666,0.4752646,96921.0,96920.0,0.704701]
[1740163823196,0.4752646,96921.0,96920.0,0.004701]
[1740163823377,0.4752646,96921.0,96920.0,0.001701]
[1740163824341,0.4752646,96921.0,96920.0,0.008701]
[1740163824342,0.3204996,96921.0,96920.0,0.008701]
[1740163824544,0.3204996,96921.0,96920.0,0.24054669]
[1740163825727,0.3204996,96921.0,96920.0,0.25080953]
[1740163825886,0.3204996,96921.0,96920.0,0.24054669]
[1740163826273,0.3204996,96921.0,96920.0,0.11734669]
[1740163831663,0.3204996,96921.0,96920.0,0.81734669]
[1740163832829,0.4752646,96921.0,96920.0,0.714701]
[1740163833035,0.4752646,96921.0,96920.0,0.014701]
[1740163834690,0.49751577,96921.0,96920.0,0.014701]
[1740163835327,0.64751577,96921.0,96920.0,0.014701]
[1740163835957,0.72871577,96921.0,96920.0,0.014701]
[1740163836125,0.72871577,96921.0,96920.0,0.007701]
[1740163836534,0.72871577,96921.0,96911.0,0.0149416]
[1740163836535,0.16454085,96920.0,96914.0,6e-08]
[1740163836736,0.31931485,96915.0,96914.0,6e-08]
[1740163836895,0.81966014,96915.0,96914.0,6e-08]
[1740163837705,0.81966014,96915.0,96914.0,0.00100006]
[1740163838346,0.82737046,96915.0,96914.0,0.00100006]
[1740163839293,0.82737046,96915.0,96914.0,6e-08]
[1740163839496,0.83137046,96915.0,96914.0,6e-08]
[1740163840259,0.92383156,96915.0,96914.0,6e-08]
[1740163843888,0.83137046,96915.0,96914.0,6e-08]
[1740163845093,0.304779,96912.0,96911.0,6.6e-07]
[1740163845295,0.42196554,96912.0,96911.0,6.6e-07]
[1740163845722,0.90996514,96912.0,96911.0,6.6e-07]
[1740163845959,0.90996514,96912.0,96871.0,0.0004]
[1740163845960,0.31937585,96877.0,96871.0,0.0004]
[1740163846155,0.63987545,96877.0,96871.0,0.0004]
[1740163846526,0.65005267,96877.0,96871.0,0.0004]
[1740163847462,0.65005267,96877.0,96876.0,9.4e-07]
[1740163847701,0.31938385,96872.0,96871.0,9.4e-07]
[1740163847920,0.42202954,96872.0,96871.0,3.3e-07]
[1740163848369,0.8022537,96872.0,96871.0,3.3e-07]
[1740163848579,0.76252914,96872.0,96871.0,3.3e-07]
[1740163848727,0.78252914,96872.0,96871.0,3.3e-07]
[1740163849320,0.86462914,96872.0,96871.0,3.3e-07]
[1740163849536,0.87233946,96872.0,96871.0,3.3e-07]
[1740163849738,0.86833946,96872.0,96871.0,3.3e-07]
[1740163849937,0.85933946,96872.0,96871.0,3.3e-07]
[1740163850147,0.65459377,96872.0,96871.0,3.3e-07]
[1740163850536,0.66159377,96872.0,96871.0,3.3e-07]
[1740163851159,0.75723946,96872.0,96871.0,3.3e-07]
[1740163851361,0.77023946,96872.0,96871.0,3.3e-07]
[1740163851559,0.78423946,96872.0,96871.0,3.3e-07]
[1740163852176,0.77723946,96872.0,96871.0,3.3e-07]
[1740163852382,0.78423946,96872.0,96871.0,3.3e-07]
[1740163852789,0.77723946,96872.0,96871.0,3.3e-07]
[1740163853054,0.78423946,96872.0,96871.0,3.3e-07]
[1740163853329,0.79123946,96872.0,96871.0,3.3e-07]
[1740163853531,0.77723946,96872.0,96871.0,3.3e-07]
[1740163853733,0.78423946,96872.0,96871.0,3.3e-07]
[1740163853883,0.77723946,96872.0,96871.0,3.3e-07]
[1740163854269,0.78423946,96872.0,96871.0,3.3e-07]
[1740163854503,0.77723946,96872.0,96871.0,3.3e-07]
[1740163854704,0.78423946,96872.0,96871.0,3.3e-07]
[1740163854906,0.77723946,96872.0,96871.0,3.3e-07]
[1740163855189,0.77023946,96872.0,96871.0,3.3e-07]
[1740163855513,0.77723946,96872.0,96871.0,3.3e-07]
[1740163855948,0.154902,96835.0,96834.0,0.0001]
[1740163856150,0.4754016,96835.0,96834.0,0.10289424]
[1740163857119,0.3204996,96835.0,96834.0,0.10289424]
[1740163857706,0.4754016,96835.0,96834.0,0.10289424]
[1740163858748,0.3204996,96835.0,96834.0,0.10289424]
[1740163859151,0.4754016,96835.0,96834.0,0.10289424]
[1740163859354,0.3204996,96835.0,96834.0,0.10289424]
[1740163859764,0.4754016,96835.0,96834.0,0.10289424]
[1740163860173,0.3204996,96835.0,96834.0,0.10289424]
[1740163860575,0.48564045,96835.0,96834.0,0.10289424]
[1740163861465,0.33073845,96835.0,96834.0,0.10289424]
[1740163861673,0.31073845,96835.0,96834.0,0.10289424]
[1740163862053,0.3004996,96835.0,96834.0,0.10289424]
[1740163862228,0.3004996,96835.0,96834.0,0.18469424]
[1740163862435,0.4554016,96835.0,96834.0,0.18469424]
[1740163862981,0.3004996,96835.0,96834.0,0.18469424]
[1740163866007,0.4554016,96835.0,96834.0,0.18469424]
[1740163866213,0.3004996,96835.0,96834.0,0.18469424]
[1740163866632,0.3013509,96835.0,96834.0,0.18469424]
[1740163867330,0.4562529,96835.0,96834.0,0.18469424]
[1740163869293,0.3013509,96835.0,96834.0,0.18469424]
[1740163869500,0.4562529,96835.0,96834.0,0.18469424]
[1740163870394,0.3013509,96835.0,96834.0,0.18469424]
[1740163872347,0.4562529,96835.0,96834.0,0.00024855]
[1740163873481,0.46390993,96835.0,96834.0,0.00024855]
[1740163873905,0.46590993,96835.0,96834.0,0.00024855]
[1740163874518,0.46790993,96835.0,96834.0,0.00024855]
[1740163876684,0.46790993,96835.0,96834.0,0.10289424]
[1740163876685,0.31300793,96835.0,96834.0,0.10289424]
[1740163876889,0.31300793,96835.0,96834.0,0.18229424]
[1740163877284,0.46390993,96835.0,96834.0,0.18229424]
[1740163877801,0.46590993,96835.0,96834.0,0.18229424]
[1740163878717,0.31100793,96835.0,96834.0,0.18229424]
[1740163879062,0.31000793,96835.0,96834.0,0.18229424]
[1740163879272,0.46490993,96835.0,96834.0,0.18229424]
[1740163879476,0.31000793,96835.0,96834.0,0.18229424]
[1740163879977,0.46490993,96835.0,96834.0,0.18229424]
[1740163880451,0.31000793,96835.0,96834.0,0.18229424]
[1740163880908,0.46490993,96835.0,96834.0,0.18229424]
[1740163881540,0.31000793,96835.0,96834.0,0.18229424]
[1740163882700,0.3023509,96835.0,96834.0,0.18229424]
[1740163883522,0.31003538,96835.0,96834.0,0.18229424]
[1740163884123,0.46493738,96835.0,96834.0,0.23159424]
[1740163884820,0.31003538,96835.0,96834.0,0.23159424]
[1740163885070,0.3023509,96835.0,96834.0,0.18229424]
[1740163887315,0.4572529,96835.0,96834.0,0.18229424]
[1740163887735,0.3023509,96835.0,96834.0,0.18229424]
[1740163889029,0.4572529,96835.0,96834.0,0.18229424]
[1740163889324,0.4572529,96835.0,96834.0,0.00024855]
[1740163889877,0.6072529,96835.0,96834.0,0.00024855]
[1740163890469,0.62079375,96835.0,96834.0,0.00024855]
[1740163890905,0.6062529,96835.0,96834.0,0.00024855]
[1740163891080,0.61392447,96835.0,96834.0,0.00024855]
[1740163895049,0.61492447,96835.0,96834.0,0.00024855]
[1740163895278,0.61592447,96835.0,96834.0,0.00024855]
[1740163898227,0.61492447,96835.0,96834.0,0.00024855]
[1740163898438,0.61692447,96835.0,96834.0,0.00024855]
[1740163898632,0.61592447,96835.0,96834.0,0.00024855]
[1740163898843,0.46592447,96835.0,96834.0,0.00024855]
[1740163899121,0.61792447,96835.0,96834.0,0.00024855]
[1740163900151,0.61592447,96835.0,96834.0,0.00024855]
[1740163900579,0.6102529,96835.0,96834.0,0.00024855]
[1740163900789,0.6082529,96835.0,96834.0,0.00024855]
[1740163901006,0.6122529,96835.0,96834.0,0.00024855]
[1740163901623,0.6102529,96835.0,96834.0,0.00024855]
[1740163901830,0.6122529,96835.0,96834.0,0.00024855]
[1740163902030,0.61992901,96835.0,96834.0,0.00024855]
[1740163904668,0.31942941,96835.0,96834.0,0.00024855]
[1740163905249,0.33397026,96835.0,96834.0,0.00024855]
[1740163907083,0.40947026,96835.0,96834.0,5.5e-07]
[1740163907343,0.45697026,96835.0,96834.0,5.5e-07]
[1740163908548,0.55361595,96835.0,96834.0,5.5e-07]
[1740163908709,0.55761595,96835.0,96834.0,5.5e-07]
[1740163909801,0.56061595,96835.0,96834.0,5.5e-07]
[1740163911992,0.55661595,96835.0,96834.0,5.5e-07]
[1740163912449,0.56361595,96835.0,96834.0,5.5e-07]
[1740163912877,0.56061595,96835.0,96834.0,5.5e-07]
[1740163913097,0.56661595,96835.0,96834.0,5.5e-07]
[1740163914468,0.65907705,96835.0,96834.0,5.5e-07]
[1740163916942,0.56661595,96835.0,96834.0,5.5e-07]
[1740163917247,0.34097026,96835.0,96834.0,5.5e-07]
[1740163920312,0.304907,96832.0,96831.0,5.5e-07]
[1740163920492,0.42209354,96832.0,96831.0,7e-08]
[1740163920896,0.42209354,96832.0,96784.0,0.0823185]
[1740163920897,0.0986,96805.0,96756.0,0.0797]
[1740163921103,0.305029,96756.0,96755.0,0.00782649]
[1740163921300,0.15508,96724.0,96723.0,0.0797]
[1740163921669,0.0102947,96726.0,96723.0,0.0797]
[1740163921909,0.02,96724.0,96723.0,0.0797]
[1740163922134,0.02,96728.0,96723.0,0.18234569]
[1740163922338,0.02,96776.0,96705.0,0.0016751]
[1740163922339,0.02,96718.0,96709.0,0.0823185]
[1740163922559,0.02,96734.0,96711.0,0.00124057]
[1740163922758,0.02,96742.0,96739.0,0.0826]
[1740163922961,0.02,96751.0,96739.0,0.0826]
[1740163923177,0.031058,96760.0,96741.0,0.18496419]
[1740163923392,0.02,96763.0,96762.0,0.155019]
[1740163923598,0.02,96772.0,96767.0,0.206682]
[1740163923806,0.02,96772.0,96753.0,0.0823185]
[1740163923807,0.02,96776.0,96775.0,0.154998]
[1740163924012,0.02,96771.0,96768.0,0.0751]
[1740163924219,0.02,96775.0,96768.0,0.230109]
[1740163924473,0.02,96783.0,96774.0,0.0823185]
[1740163924688,0.02,96781.0,96780.0,0.15499]
[1740163924893,0.02,96781.0,96780.0,0.25763569]
[1740163925412,0.02,96783.0,96782.0,0.154987]
[1740163925611,0.02,96783.0,96782.0,0.25763269]
[1740163925819,0.08906656,96806.0,96782.0,0.10264569]
[1740163926039,0.08906656,96806.0,96774.0,0.0823185]
[1740163926040,0.02,96799.0,96798.0,0.230561]
[1740163926257,0.02,96799.0,96798.0,0.17824569]
[1740163926457,0.02,96801.0,96798.0,0.17824569]
[1740163926708,0.02,96801.0,96800.0,0.154958]
[1740163926880,0.10906656,96806.0,96800.0,0.10264569]
[1740163927080,0.02,96805.0,96801.0,0.10264569]
[1740163927281,0.02,96805.0,96801.0,0.10308016]
[1740163928123,0.02,96802.0,96801.0,0.10308016]
[1740163929032,0.174955,96802.0,96801.0,0.10308016]
[1740163929239,0.17619315,96802.0,96801.0,0.00043447]
[1740163929482,0.174955,96802.0,96801.0,0.00043447]
[1740163929717,0.33949585,96802.0,96801.0,0.00043447]
[1740163930173,0.324955,96802.0,96801.0,0.00043447]
[1740163930417,0.17,96802.0,96801.0,0.00043447]
[1740163930661,0.324955,96802.0,96801.0,0.00043447]
[1740163930793,0.328955,96802.0,96801.0,0.00043447]
[1740163931231,0.327955,96802.0,96801.0,0.00043447]
[1740163931609,0.326955,96802.0,96801.0,0.00043447]
[1740163933590,0.324955,96802.0,96801.0,0.00043447]
[1740163933817,0.326955,96802.0,96801.0,0.00043447]
[1740163934033,0.328955,96802.0,96801.0,0.00043447]
[1740163934234,0.022,96802.0,96801.0,0.10308016]
[1740163934438,0.024,96802.0,96801.0,0.10308016]
[1740163934863,0.178955,96802.0,96801.0,0.10308016]
[1740163935143,0.002,96802.0,96801.0,0.10308016]
[1740163935356,0.02,96804.0,96801.0,0.18538016]
[1740163935556,0.02,96804.0,96802.0,0.10264569]
[1740163935782,0.08906656,96806.0,96801.0,0.08273447]
[1740163935783,0.02,96802.0,96801.0,0.00043447]
[1740163935995,0.174955,96802.0,96801.0,0.00043447]
[1740163936336,0.33949585,96802.0,96801.0,0.00043447]
[1740163937124,0.34249585,96802.0,96801.0,0.00043447]
[1740163937579,0.33949585,96802.0,96801.0,0.00043447]
[1740163937783,0.34049585,96802.0,96801.0,0.00043447]
[1740163937987,0.34149585,96802.0,96801.0,0.00043447]
[1740163938692,0.33949585,96802.0,96801.0,0.00043447]
[1740163939075,0.34249585,96802.0,96801.0,0.00043447]
[1740163940216,0.331955,96802.0,96801.0,0.00043447]
[1740163940716,0.307955,96802.0,96801.0,0.00043447]
[1740163940911,0.304955,96802.0,96801.0,0.00043447]
[1740163941155,0.335955,96802.0,96801.0,0.00043447]
[1740163941639,0.324955,96802.0,96801.0,0.00043447]
[1740163941885,0.031,96802.0,96801.0,0.00043447]
[1740163942125,0.026,96802.0,96801.0,0.18618016]
[1740163942374,0.008,96802.0,96801.0,0.18618016]
[1740163942625,0.028,96802.0,96801.0,0.18618016]
[1740163943114,0.022,96802.0,96801.0,0.18618016]
[1740163943306,0.002,96802.0,96801.0,0.18618016]
[1740163943535,0.008,96802.0,96801.0,0.18618016]
[1740163943893,0.005,96802.0,96801.0,0.18618016]
[1740163944731,0.02,96804.0,96801.0,0.18618016]
[1740163944949,0.02,96804.0,96802.0,0.10264569]
[1740163946821,0.174953,96803.0,96802.0,0.10264569]
[1740163947829,0.02,96803.0,96802.0,0.10264569]
[1740163948239,0.174953,96803.0,96802.0,0.10264569]
[1740163948776,0.174955,96802.0,96801.0,0.00043447]
[1740163949940,0.175955,96802.0,96801.0,0.00043447]
[1740163950780,0.176955,96802.0,96801.0,0.00043447]
[1740163950989,0.52692352,96802.0,96801.0,4.7e-07]
[1740163951198,0.02,96759.0,96754.0,0.0782]
[1740163951350,0.17503,96755.0,96754.0,0.0782]
[1740163951709,0.02,96755.0,96754.0,0.0782]
[1740163951909,0.00043278,96759.0,96754.0,0.18084569]
[1740163952126,0.00043278,96759.0,96758.0,0.41788919]
[1740163952565,0.00043278,96759.0,96758.0,5.26817819]
[1740163952788,0.02,96797.0,96781.0,0.079]
[1740163952990,0.02,96797.0,96784.0,0.0454]
[1740163953198,0.02,96797.0,96789.0,0.154975]
[1740163953603,0.02,96797.0,96785.0,0.10388537]
[1740163953604,0.0208517,96804.0,96790.0,0.10264569]
[1740163953810,0.0208517,96804.0,96792.0,0.15497]
[1740163954016,0.0008517,96804.0,96792.0,0.10264569]
[1740163954194,0.0008517,96804.0,96795.0,0.154966]
[1740163954419,0.0008517,96804.0,96796.0,0.10264569]
[1740163955428,0.0018517,96804.0,96796.0,0.10264569]
[1740163955608,0.0008517,96804.0,96796.0,0.10264569]
[1740163955957,0.0018517,96804.0,96796.0,0.10264569]
[1740163956332,0.0008517,96804.0,96796.0,0.10264569]
[1740163958341,0.0008517,96804.0,96797.0,4.5801]
[1740163958538,0.0008517,96804.0,96798.0,0.10388519]
[1740163959243,0.0008517,96804.0,96799.0,0.10264569]
[1740163959446,0.0008517,96804.0,96803.0,0.25759869]
[1740163961672,0.0008517,96804.0,96803.0,0.33959869]
[1740163961673,0.0018517,96804.0,96803.0,0.33959869]
[1740163962158,0.0018517,96804.0,96803.0,5.19178769]
[1740163962372,0.0008517,96804.0,96803.0,5.19178769]
[1740163962705,0.0018517,96804.0,96803.0,5.19178769]
[1740163963150,0.0028517,96804.0,96803.0,5.19478769]
[1740163963582,0.0018517,96804.0,96803.0,5.19178769]
[1740163963803,0.0028517,96804.0,96803.0,5.19478769]
[1740163964043,0.0028517,96804.0,96803.0,5.19978769]
[1740163964044,0.0038517,96804.0,96803.0,5.19978769]
[1740163964710,0.0038517,96804.0,96803.0,5.34978769]
[1740163965275,0.0018517,96804.0,96803.0,5.34478769]
[1740163965524,0.0008517,96804.0,96803.0,5.34178769]
[1740163965726,0.0028517,96804.0,96803.0,5.37404739]
[1740163966022,0.0018517,96804.0,96803.0,5.36904739]
[1740163966221,0.0008517,96804.0,96803.0,5.36204739]
[1740163966449,0.0008517,96804.0,96803.0,5.31116769]
[1740163966450,0.001,96804.0,96803.0,5.31116769]
[1740163966654,0.001,96804.0,96803.0,5.46040184]
[1740163966860,0.0008513,96835.0,96834.0,0.230604]
[1740163967062,0.0008513,96835.0,96834.0,0.33324969]
[1740163968141,0.0008513,96835.0,96834.0,0.33339809]
[1740163968383,0.0008513,96835.0,96834.0,0.10279409]
[1740163968627,0.0008513,96835.0,96834.0,0.10979409]
[1740163968628,0.0218513,96835.0,96834.0,0.10979409]
[1740163969167,0.0218513,96835.0,96834.0,0.11479409]
[1740163969411,0.0208513,96835.0,96834.0,0.10779409]
[1740163969671,0.0208513,96835.0,96834.0,0.10279409]
[1740163969672,0.0008513,96835.0,96834.0,0.10279409]
[1740163969924,0.1757533,96835.0,96834.0,0.10779409]
[1740163970181,0.0208513,96835.0,96834.0,0.10779409]
[1740163970465,0.1757533,96835.0,96834.0,0.10779409]
[1740163970686,0.1757533,96835.0,96834.0,0.11179409]
[1740163970900,0.3257533,96835.0,96834.0,0.0051484]
[1740163971289,0.3267533,96835.0,96834.0,0.0051484]
[1740163971523,0.3257533,96835.0,96834.0,0.0051484]
[1740163971784,0.6472533,96835.0,96834.0,0.0001484]
[1740163972263,0.6492533,96835.0,96834.0,0.0001484]
[1740163972473,0.6472533,96835.0,96834.0,0.0001484]
[1740163972655,0.6578197,96835.0,96834.0,0.0001484]
[1740163972885,0.6588197,96835.0,96834.0,0.0001484]
[1740163976422,0.67336055,96835.0,96834.0,0.0001484]
[1740163977051,0.35286055,96835.0,96834.0,0.0001484]
[1740163977611,0.3383197,96835.0,96834.0,0.0001484]
[1740163980711,0.43376055,96835.0,96834.0,4e-07]
[1740163980942,0.02,96788.0,96773.0,0.0793]
[1740163981178,0.02,96788.0,96777.0,0.10264569]
[1740163981388,0.02,96788.0,96777.0,0.11320051]
[1740163981821,0.174978,96788.0,96777.0,0.10264569]
[1740163982071,0.02,96785.0,96777.0,0.10264569]
[1740163982287,0.02,96781.0,96777.0,0.10264569]
[1740163982516,0.02,96781.0,96777.0,0.10464569]
[1740163982770,0.02,96781.0,96777.0,0.10764569]
[1740163983260,0.02,96781.0,96777.0,0.10464569]
[1740163983494,0.02,96781.0,96777.0,0.11064569]
[1740163984103,0.02,96781.0,96777.0,0.10864569]
[1740163984539,0.02,96781.0,96777.0,0.11364569]
[1740163987027,0.02,96787.0,96777.0,0.11364569]
[1740163987229,0.02,96787.0,96777.0,0.10864569]
[1740163987741,4.326e-05,96788.0,96783.0,0.10264569]
[1740163987978,0.154979,96787.0,96783.0,0.10264569]
[1740163988215,4.326e-05,96788.0,96783.0,0.10264569]
[1740163989308,4.326e-05,96788.0,96783.0,0.10564569]
[1740163990586,4.326e-05,96788.0,96783.0,0.10464569]
[1740163990790,0.02,96790.0,96788.0,0.00105674]
[1740163991005,0.02,96790.0,96789.0,0.10264569]
[1740163992682,0.174974,96790.0,96789.0,0.10264569]
[1740163992915,0.02,96790.0,96789.0,0.10264569]
[1740163994009,0.174974,96790.0,96789.0,0.10264569]
[1740163994438,0.02,96790.0,96789.0,0.10264569]
[1740163995083,0.174974,96790.0,96789.0,0.10264569]
[1740163998569,0.02,96790.0,96789.0,0.10264569]
[1740163998767,0.02,96798.0,96789.0,0.10264569]
[1740163998967,0.02,96798.0,96791.0,0.0763]
[1740163999175,0.02,96798.0,96792.0,0.10264569]
[1740164000313,0.174962,96798.0,96792.0,0.10264569]
[1740164000460,0.02,96798.0,96792.0,0.10264569]
[1740164001324,0.02,96798.0,96792.0,0.10764569]
[1740164003502,0.09169977,96820.0,96794.0,0.154968]
[1740164003503,0.02,96802.0,96794.0,0.154968]
[1740164003709,0.02,96802.0,96795.0,0.10264569]
[1740164004923,0.02,96802.0,96795.0,0.10364569]
[1740164005053,0.02,96802.0,96795.0,0.10264569]
[1740164005488,0.02,96802.0,96795.0,0.10364569]
[1740164005916,0.17459229,96820.0,96795.0,0.10364569]
[1740164005917,0.02,96811.0,96797.0,0.10264569]
[1740164006104,0.02,96811.0,96799.0,0.10264569]
[1740164006305,0.154926,96820.0,96805.0,0.154949]
[1740164006532,0.154928,96819.0,96806.0,0.10264569]
[1740164006704,0.09169977,96824.0,96816.0,0.154931]
[1740164006937,0.02,96821.0,96817.0,0.10264569]
[1740164007130,0.02,96823.0,96817.0,0.10264569]
[1740164007335,0.11169977,96824.0,96817.0,0.10264569]
[1740164007729,0.002,96820.0,96817.0,0.10264569]
[1740164008088,0.09169977,96830.0,96819.0,0.18564569]
[1740164008250,0.09169977,96830.0,96821.0,0.10264569]
[1740164008454,0.09169977,96830.0,96824.0,0.10264569]
[1740164008659,0.09169977,96830.0,96826.0,0.10264569]
[1740164008858,0.09169977,96830.0,96827.0,0.154915]
[1740164009064,0.09169977,96830.0,96828.0,0.10264569]
[1740164009237,0.09169977,96830.0,96828.0,0.10279281]
[1740164009439,0.09269977,96830.0,96829.0,0.25755769]
[1740164010254,0.09269977,96830.0,96829.0,0.33595769]
[1740164010486,0.09269977,96830.0,96829.0,0.33695769]
[1740164010909,0.001,96830.0,96829.0,0.33595769]
[1740164011119,0.001,96830.0,96829.0,5.14384669]
[1740164011328,0.0008513,96835.0,96834.0,0.304904]
[1740164011520,0.0008513,96835.0,96834.0,0.48484969]
[1740164011729,0.0008513,96835.0,96834.0,5.28973869]
[1740164012597,0.0162513,96858.0,96834.0,5.14183469]
[1740164012798,0.0162513,96858.0,96848.0,0.10264569]
[1740164013454,0.206472,96866.0,96848.0,0.10264569]
[1740164013455,0.15488,96849.0,96848.0,0.10264569]
[1740164013663,0.0162513,96854.0,96848.0,0.10264569]
[1740164015506,0.0162513,96854.0,96848.0,0.10464569]
[1740164016546,0.0162513,96858.0,96848.0,0.25952669]
[1740164016758,0.0162513,96858.0,96856.0,0.154867]
[1740164016968,0.0162513,96858.0,96857.0,0.10264569]
[1740164019772,0.0171015,96858.0,96857.0,0.10264569]
[1740164026517,0.0008502,96858.0,96857.0,0.25875152]
[1740164026731,0.0008502,96858.0,96857.0,0.25751269]
[1740164026940,0.0008502,96858.0,96857.0,0.10264569]
[1740164027147,0.1719665,96858.0,96857.0,0.10264569]
[1740164027365,0.0171015,96858.0,96857.0,0.10264569]
[1740164027768,0.0171015,96858.0,96857.0,0.10464569]
[1740164028172,0.0171015,96858.0,96857.0,0.10764569]
[1740164028439,0.0171015,96858.0,96857.0,0.10264569]
[1740164028695,0.0171015,96858.0,96857.0,0.10864569]
[1740164030562,0.0171015,96858.0,96857.0,0.09197902]
[1740164031424,0.0171015,96858.0,96857.0,0.24684602]
[1740164031559,0.0171015,96858.0,96857.0,0.09197902]
[1740164032390,0.0171015,96858.0,96857.0,0.24684602]
[1740164032827,0.0171015,96858.0,96857.0,0.09197902]
[1740164033446,0.0171015,96858.0,96857.0,0.24684602]
[1740164033673,0.0171015,96858.0,96857.0,0.09197902]
[1740164034769,0.1719665,96858.0,96857.0,0.006]
[1740164034988,0.4451665,96858.0,96857.0,0.006]
[1740164035167,0.45534536,96858.0,96857.0,1e-06]
[1740164035381,0.45534536,96858.0,96823.0,0.23216]
[1740164035382,0.0162513,96829.0,96823.0,0.23216]
[1740164035586,0.0162513,96829.0,96828.0,0.10279281]
[1740164037891,0.0162513,96829.0,96828.0,0.10579281]
[1740164038109,0.0162513,96829.0,96828.0,0.10979281]
[1740164040220,0.1711633,96829.0,96828.0,0.10979281]
[1740164040378,0.1711633,96829.0,96828.0,0.00714712]
[1740164041228,0.6416633,96829.0,96828.0,0.00714712]
[1740164042064,0.6416633,96829.0,96828.0,0.00314712]
[1740164042065,0.65194811,96829.0,96828.0,0.00314712]
[1740164042537,0.65194811,96829.0,96828.0,0.00514712]
[1740164043213,0.65194811,96829.0,96828.0,0.00214712]
[1740164043443,0.65194811,96829.0,96828.0,0.00314712]
[1740164043692,0.65194811,96829.0,96828.0,0.00014712]
[1740164044181,0.65994811,96829.0,96828.0,0.00014712]
[1740164047349,0.73604811,96829.0,96828.0,0.00014712]
[1740164047594,0.41554811,96829.0,96828.0,0.00014712]
[1740164058390,0.33944811,96829.0,96828.0,0.00014712]
[1740164059553,0.35398896,96829.0,96828.0,1.2e-07]
[1740164060459,0.59833465,96829.0,96828.0,1.2e-07]
[1740164060685,0.60533465,96829.0,96828.0,1.2e-07]
[1740164061168,0.72398034,96829.0,96790.0,0.0005]
[1740164061386,0.3212243,96791.0,96790.0,0.00054886]
[1740164062545,0.3212243,96791.0,96790.0,0.00154886]